Workbook

Sheet Nadzorna plošča
C1: ="Nadzorna plošča primernosti za - "&Ime -> Nadzorna plošča primernosti za - Kopač, Barbara
B2: teža (kg) | J2: višina (cm)
B12: ocenjena pusta telesna masa
B28: ocena indeksa telesne teže, maščobe in mase

Sheet Vnos podatkov
C1: sledilnik telesne kondicije
B2: 69 | H2: ime | I2: Kopač, Barbara
H3: višina | I3: 175.00 cm
B6: datum | C6: teža (kg) | D6: prsa | E6: pas | F6: boki | G6: zapestje | H6: podlaket | I6: pusta telesna teža | J6: teža telesne maščobe | K6: telesna maščoba v odstotkih | L6: indeks telesne mase (ITM)
B7: 2012-06-09 | C7: 140.0 | D7: 32.0 | E7: 31.0 | F7: 40.0 | G7: 6.8 | H7: 11.5 | I7: =IF(podatki[[#This Row],[teža (kg)]]="","",((podatki[[#This Row],[teža (kg)]]*0.732)+ 8.987)+(podatki[[#This Row],[zapestje]]/3.14)-(podatki[[#This Row],[pas]]*0.157)-(podatki[[#This Row],[boki]]*0.249)+(podatki[[#This Row],[podlaket]]*0.434)) -> 103.80 | J7: =IFERROR(podatki[[#This Row],[teža (kg)]]-podatki[[#This Row],[pusta telesna teža]],"") -> 36.20 | K7: =IFERROR((podatki[[#This Row],[teža telesne maščobe]]*100)/podatki[[#This Row],[teža (kg)]],"") -> 25.86 | L7: =(podatki[[#This Row],[teža (kg)]]/((Višina/100)*(Višina/100))) -> 45.71
B8: 2012-06-10 | C8: 140.0 | D8: 32.0 | E8: 31.0 | F8: 39.5 | G8: 6.7 | H8: 11.5 | I8: =IF(podatki[[#This Row],[teža (kg)]]="","",((podatki[[#This Row],[teža (kg)]]*0.732)+ 8.987)+(podatki[[#This Row],[zapestje]]/3.14)-(podatki[[#This Row],[pas]]*0.157)-(podatki[[#This Row],[boki]]*0.249)+(podatki[[#This Row],[podlaket]]*0.434)) -> 103.89 | J8: =IFERROR(podatki[[#This Row],[teža (kg)]]-podatki[[#This Row],[pusta telesna teža]],"") -> 36.11 | K8: =IFERROR((podatki[[#This Row],[teža telesne maščobe]]*100)/podatki[[#This Row],[teža (kg)]],"") -> 25.79 | L8: =(podatki[[#This Row],[teža (kg)]]/((Višina/100)*(Višina/100))) -> 45.71
B9: 2012-06-11 | C9: 139.0 | D9: 32.0 | E9: 31.0 | F9: 39.5 | G9: 6.7 | H9: 11.5 | I9: =IF(podatki[[#This Row],[teža (kg)]]="","",((podatki[[#This Row],[teža (kg)]]*0.732)+ 8.987)+(podatki[[#This Row],[zapestje]]/3.14)-(podatki[[#This Row],[pas]]*0.157)-(podatki[[#This Row],[boki]]*0.249)+(podatki[[#This Row],[podlaket]]*0.434)) -> 103.16 | J9: =IFERROR(podatki[[#This Row],[teža (kg)]]-podatki[[#This Row],[pusta telesna teža]],"") -> 35.84 | K9: =IFERROR((podatki[[#This Row],[teža telesne maščobe]]*100)/podatki[[#This Row],[teža (kg)]],"") -> 25.79 | L9: =(podatki[[#This Row],[teža (kg)]]/((Višina/100)*(Višina/100))) -> 45.39
B10: 2012-06-12 | C10: 139.0 | D10: 32.0 | E10: 28.0 | F10: 39.0 | G10: 6.3 | H10: 11.0 | I10: =IF(podatki[[#This Row],[teža (kg)]]="","",((podatki[[#This Row],[teža (kg)]]*0.732)+ 8.987)+(podatki[[#This Row],[zapestje]]/3.14)-(podatki[[#This Row],[pas]]*0.157)-(podatki[[#This Row],[boki]]*0.249)+(podatki[[#This Row],[podlaket]]*0.434)) -> 103.41 | J10: =IFERROR(podatki[[#This Row],[teža (kg)]]-podatki[[#This Row],[pusta telesna teža]],"") -> 35.59 | K10: =IFERROR((podatki[[#This Row],[teža telesne maščobe]]*100)/podatki[[#This Row],[teža (kg)]],"") -> 25.61 | L10: =(podatki[[#This Row],[teža (kg)]]/((Višina/100)*(Višina/100))) -> 45.39
B11: 2012-06-13 | C11: 139.0 | D11: 32.0 | E11: 28.0 | F11: 39.0 | G11: 6.3 | H11: 11.0 | I11: =IF(podatki[[#This Row],[teža (kg)]]="","",((podatki[[#This Row],[teža (kg)]]*0.732)+ 8.987)+(podatki[[#This Row],[zapestje]]/3.14)-(podatki[[#This Row],[pas]]*0.157)-(podatki[[#This Row],[boki]]*0.249)+(podatki[[#This Row],[podlaket]]*0.434)) -> 103.41 | J11: =IFERROR(podatki[[#This Row],[teža (kg)]]-podatki[[#This Row],[pusta telesna teža]],"") -> 35.59 | K11: =IFERROR((podatki[[#This Row],[teža telesne maščobe]]*100)/podatki[[#This Row],[teža (kg)]],"") -> 25.61 | L11: =(podatki[[#This Row],[teža (kg)]]/((Višina/100)*(Višina/100))) -> 45.39
B12: 2012-06-14 | C12: 138.0 | D12: 32.0 | E12: 28.0 | F12: 39.0 | G12: 6.3 | H12: 11.0 | I12: =IF(podatki[[#This Row],[teža (kg)]]="","",((podatki[[#This Row],[teža (kg)]]*0.732)+ 8.987)+(podatki[[#This Row],[zapestje]]/3.14)-(podatki[[#This Row],[pas]]*0.157)-(podatki[[#This Row],[boki]]*0.249)+(podatki[[#This Row],[podlaket]]*0.434)) -> 102.68 | J12: =IFERROR(podatki[[#This Row],[teža (kg)]]-podatki[[#This Row],[pusta telesna teža]],"") -> 35.32 | K12: =IFERROR((podatki[[#This Row],[teža telesne maščobe]]*100)/podatki[[#This Row],[teža (kg)]],"") -> 25.60 | L12: =(podatki[[#This Row],[teža (kg)]]/((Višina/100)*(Višina/100))) -> 45.06
B13: 2012-06-15 | C13: 137.0 | D13: 32.0 | E13: 28.0 | F13: 38.0 | G13: 6.3 | H13: 11.0 | I13: =IF(podatki[[#This Row],[teža (kg)]]="","",((podatki[[#This Row],[teža (kg)]]*0.732)+ 8.987)+(podatki[[#This Row],[zapestje]]/3.14)-(podatki[[#This Row],[pas]]*0.157)-(podatki[[#This Row],[boki]]*0.249)+(podatki[[#This Row],[podlaket]]*0.434)) -> 102.19 | J13: =IFERROR(podatki[[#This Row],[teža (kg)]]-podatki[[#This Row],[pusta telesna teža]],"") -> 34.81 | K13: =IFERROR((podatki[[#This Row],[teža telesne maščobe]]*100)/podatki[[#This Row],[teža (kg)]],"") -> 25.41 | L13: =(podatki[[#This Row],[teža (kg)]]/((Višina/100)*(Višina/100))) -> 44.73
B14: 2012-06-16 | C14: 136.0 | D14: 31.5 | E14: 27.5 | F14: 38.0 | G14: 6.3 | H14: 11.0 | I14: =IF(podatki[[#This Row],[teža (kg)]]="","",((podatki[[#This Row],[teža (kg)]]*0.732)+ 8.987)+(podatki[[#This Row],[zapestje]]/3.14)-(podatki[[#This Row],[pas]]*0.157)-(podatki[[#This Row],[boki]]*0.249)+(podatki[[#This Row],[podlaket]]*0.434)) -> 101.54 | J14: =IFERROR(podatki[[#This Row],[teža (kg)]]-podatki[[#This Row],[pusta telesna teža]],"") -> 34.46 | K14: =IFERROR((podatki[[#This Row],[teža telesne maščobe]]*100)/podatki[[#This Row],[teža (kg)]],"") -> 25.34 | L14: =(podatki[[#This Row],[teža (kg)]]/((Višina/100)*(Višina/100))) -> 44.41
B15: 2012-06-17 | C15: 135.0 | D15: 31.5 | E15: 27.3 | F15: 37.8 | G15: 6.3 | H15: 10.5 | I15: =IF(podatki[[#This Row],[teža (kg)]]="","",((podatki[[#This Row],[teža (kg)]]*0.732)+ 8.987)+(podatki[[#This Row],[zapestje]]/3.14)-(podatki[[#This Row],[pas]]*0.157)-(podatki[[#This Row],[boki]]*0.249)+(podatki[[#This Row],[podlaket]]*0.434)) -> 100.69 | J15: =IFERROR(podatki[[#This Row],[teža (kg)]]-podatki[[#This Row],[pusta telesna teža]],"") -> 34.31 | K15: =IFERROR((podatki[[#This Row],[teža telesne maščobe]]*100)/podatki[[#This Row],[teža (kg)]],"") -> 25.41 | L15: =(podatki[[#This Row],[teža (kg)]]/((Višina/100)*(Višina/100))) -> 44.08
B16: 2012-06-18 | C16: 135.0 | D16: 31.5 | E16: 27.0 | F16: 37.0 | G16: 6.3 | H16: 10.5 | I16: =IF(podatki[[#This Row],[teža (kg)]]="","",((podatki[[#This Row],[teža (kg)]]*0.732)+ 8.987)+(podatki[[#This Row],[zapestje]]/3.14)-(podatki[[#This Row],[pas]]*0.157)-(podatki[[#This Row],[boki]]*0.249)+(podatki[[#This Row],[podlaket]]*0.434)) -> 100.92 | J16: =IFERROR(podatki[[#This Row],[teža (kg)]]-podatki[[#This Row],[pusta telesna teža]],"") -> 34.08 | K16: =IFERROR((podatki[[#This Row],[teža telesne maščobe]]*100)/podatki[[#This Row],[teža (kg)]],"") -> 25.25 | L16: =(podatki[[#This Row],[teža (kg)]]/((Višina/100)*(Višina/100))) -> 44.08
B17: 2012-06-19 | C17: 134.0 | D17: 31.0 | E17: 27.0 | F17: 37.0 | G17: 6.3 | H17: 10.0 | I17: =IF(podatki[[#This Row],[teža (kg)]]="","",((podatki[[#This Row],[teža (kg)]]*0.732)+ 8.987)+(podatki[[#This Row],[zapestje]]/3.14)-(podatki[[#This Row],[pas]]*0.157)-(podatki[[#This Row],[boki]]*0.249)+(podatki[[#This Row],[podlaket]]*0.434)) -> 99.97 | J17: =IFERROR(podatki[[#This Row],[teža (kg)]]-podatki[[#This Row],[pusta telesna teža]],"") -> 34.03 | K17: =IFERROR((podatki[[#This Row],[teža telesne maščobe]]*100)/podatki[[#This Row],[teža (kg)]],"") -> 25.40 | L17: =(podatki[[#This Row],[teža (kg)]]/((Višina/100)*(Višina/100))) -> 43.76
B18: 2012-06-20 | C18: 133.0 | D18: 31.0 | E18: 27.0 | F18: 37.0 | G18: 6.2 | H18: 10.0 | I18: =IF(podatki[[#This Row],[teža (kg)]]="","",((podatki[[#This Row],[teža (kg)]]*0.732)+ 8.987)+(podatki[[#This Row],[zapestje]]/3.14)-(podatki[[#This Row],[pas]]*0.157)-(podatki[[#This Row],[boki]]*0.249)+(podatki[[#This Row],[podlaket]]*0.434)) -> 99.21 | J18: =IFERROR(podatki[[#This Row],[teža (kg)]]-podatki[[#This Row],[pusta telesna teža]],"") -> 33.79 | K18: =IFERROR((podatki[[#This Row],[teža telesne maščobe]]*100)/podatki[[#This Row],[teža (kg)]],"") -> 25.41 | L18: =(podatki[[#This Row],[teža (kg)]]/((Višina/100)*(Višina/100))) -> 43.43
B19: 2012-06-21 | C19: 132.0 | D19: 31.0 | E19: 27.0 | F19: 36.0 | G19: 6.2 | H19: 10.0 | I19: =IF(podatki[[#This Row],[teža (kg)]]="","",((podatki[[#This Row],[teža (kg)]]*0.732)+ 8.987)+(podatki[[#This Row],[zapestje]]/3.14)-(podatki[[#This Row],[pas]]*0.157)-(podatki[[#This Row],[boki]]*0.249)+(podatki[[#This Row],[podlaket]]*0.434)) -> 98.72 | J19: =IFERROR(podatki[[#This Row],[teža (kg)]]-podatki[[#This Row],[pusta telesna teža]],"") -> 33.28 | K19: =IFERROR((podatki[[#This Row],[teža telesne maščobe]]*100)/podatki[[#This Row],[teža (kg)]],"") -> 25.21 | L19: =(podatki[[#This Row],[teža (kg)]]/((Višina/100)*(Višina/100))) -> 43.10
B20: 2012-06-22 | C20: 130.0 | D20: 31.0 | E20: 26.0 | F20: 36.0 | G20: 6.2 | H20: 10.0 | I20: =IF(podatki[[#This Row],[teža (kg)]]="","",((podatki[[#This Row],[teža (kg)]]*0.732)+ 8.987)+(podatki[[#This Row],[zapestje]]/3.14)-(podatki[[#This Row],[pas]]*0.157)-(podatki[[#This Row],[boki]]*0.249)+(podatki[[#This Row],[podlaket]]*0.434)) -> 97.42 | J20: =IFERROR(podatki[[#This Row],[teža (kg)]]-podatki[[#This Row],[pusta telesna teža]],"") -> 32.58 | K20: =IFERROR((podatki[[#This Row],[teža telesne maščobe]]*100)/podatki[[#This Row],[teža (kg)]],"") -> 25.06 | L20: =(podatki[[#This Row],[teža (kg)]]/((Višina/100)*(Višina/100))) -> 42.45
B21: 2012-06-23 | C21: 130.0 | D21: 31.0 | E21: 26.0 | F21: 36.0 | G21: 6.2 | H21: 10.0 | I21: =IF(podatki[[#This Row],[teža (kg)]]="","",((podatki[[#This Row],[teža (kg)]]*0.732)+ 8.987)+(podatki[[#This Row],[zapestje]]/3.14)-(podatki[[#This Row],[pas]]*0.157)-(podatki[[#This Row],[boki]]*0.249)+(podatki[[#This Row],[podlaket]]*0.434)) -> 97.42 | J21: =IFERROR(podatki[[#This Row],[teža (kg)]]-podatki[[#This Row],[pusta telesna teža]],"") -> 32.58 | K21: =IFERROR((podatki[[#This Row],[teža telesne maščobe]]*100)/podatki[[#This Row],[teža (kg)]],"") -> 25.06 | L21: =(podatki[[#This Row],[teža (kg)]]/((Višina/100)*(Višina/100))) -> 42.45
B22: 2012-06-24 | C22: 129.0 | D22: 31.0 | E22: 26.0 | F22: 35.0 | G22: 6.0 | H22: 9.5 | I22: =IF(podatki[[#This Row],[teža (kg)]]="","",((podatki[[#This Row],[teža (kg)]]*0.732)+ 8.987)+(podatki[[#This Row],[zapestje]]/3.14)-(podatki[[#This Row],[pas]]*0.157)-(podatki[[#This Row],[boki]]*0.249)+(podatki[[#This Row],[podlaket]]*0.434)) -> 96.65 | J22: =IFERROR(podatki[[#This Row],[teža (kg)]]-podatki[[#This Row],[pusta telesna teža]],"") -> 32.35 | K22: =IFERROR((podatki[[#This Row],[teža telesne maščobe]]*100)/podatki[[#This Row],[teža (kg)]],"") -> 25.08 | L22: =(podatki[[#This Row],[teža (kg)]]/((Višina/100)*(Višina/100))) -> 42.12
B23: 2012-06-25 | C23: 129.0 | D23: 31.0 | E23: 26.0 | F23: 35.0 | G23: 6.0 | H23: 9.5 | I23: =IF(podatki[[#This Row],[teža (kg)]]="","",((podatki[[#This Row],[teža (kg)]]*0.732)+ 8.987)+(podatki[[#This Row],[zapestje]]/3.14)-(podatki[[#This Row],[pas]]*0.157)-(podatki[[#This Row],[boki]]*0.249)+(podatki[[#This Row],[podlaket]]*0.434)) -> 96.65 | J23: =IFERROR(podatki[[#This Row],[teža (kg)]]-podatki[[#This Row],[pusta telesna teža]],"") -> 32.35 | K23: =IFERROR((podatki[[#This Row],[teža telesne maščobe]]*100)/podatki[[#This Row],[teža (kg)]],"") -> 25.08 | L23: =(podatki[[#This Row],[teža (kg)]]/((Višina/100)*(Višina/100))) -> 42.12
B24: 2012-06-26 | C24: 129.0 | D24: 31.0 | E24: 26.0 | F24: 35.0 | G24: 6.0 | H24: 9.5 | I24: =IF(podatki[[#This Row],[teža (kg)]]="","",((podatki[[#This Row],[teža (kg)]]*0.732)+ 8.987)+(podatki[[#This Row],[zapestje]]/3.14)-(podatki[[#This Row],[pas]]*0.157)-(podatki[[#This Row],[boki]]*0.249)+(podatki[[#This Row],[podlaket]]*0.434)) -> 96.65 | J24: =IFERROR(podatki[[#This Row],[teža (kg)]]-podatki[[#This Row],[pusta telesna teža]],"") -> 32.35 | K24: =IFERROR((podatki[[#This Row],[teža telesne maščobe]]*100)/podatki[[#This Row],[teža (kg)]],"") -> 25.08 | L24: =(podatki[[#This Row],[teža (kg)]]/((Višina/100)*(Višina/100))) -> 42.12
B25: 2012-06-27 | C25: 129.0 | D25: 31.0 | E25: 26.0 | F25: 35.0 | G25: 6.0 | H25: 9.5 | I25: =IF(podatki[[#This Row],[teža (kg)]]="","",((podatki[[#This Row],[teža (kg)]]*0.732)+ 8.987)+(podatki[[#This Row],[zapestje]]/3.14)-(podatki[[#This Row],[pas]]*0.157)-(podatki[[#This Row],[boki]]*0.249)+(podatki[[#This Row],[podlaket]]*0.434)) -> 96.65 | J25: =IFERROR(podatki[[#This Row],[teža (kg)]]-podatki[[#This Row],[pusta telesna teža]],"") -> 32.35 | K25: =IFERROR((podatki[[#This Row],[teža telesne maščobe]]*100)/podatki[[#This Row],[teža (kg)]],"") -> 25.08 | L25: =(podatki[[#This Row],[teža (kg)]]/((Višina/100)*(Višina/100))) -> 42.12
B26: 2012-06-28 | C26: 129.0 | D26: 31.0 | E26: 26.0 | F26: 35.0 | G26: 6.0 | H26: 9.5 | I26: =IF(podatki[[#This Row],[teža (kg)]]="","",((podatki[[#This Row],[teža (kg)]]*0.732)+ 8.987)+(podatki[[#This Row],[zapestje]]/3.14)-(podatki[[#This Row],[pas]]*0.157)-(podatki[[#This Row],[boki]]*0.249)+(podatki[[#This Row],[podlaket]]*0.434)) -> 96.65 | J26: =IFERROR(podatki[[#This Row],[teža (kg)]]-podatki[[#This Row],[pusta telesna teža]],"") -> 32.35 | K26: =IFERROR((podatki[[#This Row],[teža telesne maščobe]]*100)/podatki[[#This Row],[teža (kg)]],"") -> 25.08 | L26: =(podatki[[#This Row],[teža (kg)]]/((Višina/100)*(Višina/100))) -> 42.12
B27: 2012-06-29 | C27: 129.0 | D27: 31.0 | E27: 26.0 | F27: 35.0 | G27: 6.0 | H27: 9.5 | I27: =IF(podatki[[#This Row],[teža (kg)]]="","",((podatki[[#This Row],[teža (kg)]]*0.732)+ 8.987)+(podatki[[#This Row],[zapestje]]/3.14)-(podatki[[#This Row],[pas]]*0.157)-(podatki[[#This Row],[boki]]*0.249)+(podatki[[#This Row],[podlaket]]*0.434)) -> 96.65 | J27: =IFERROR(podatki[[#This Row],[teža (kg)]]-podatki[[#This Row],[pusta telesna teža]],"") -> 32.35 | K27: =IFERROR((podatki[[#This Row],[teža telesne maščobe]]*100)/podatki[[#This Row],[teža (kg)]],"") -> 25.08 | L27: =(podatki[[#This Row],[teža (kg)]]/((Višina/100)*(Višina/100))) -> 42.12
